Cogmind - Beta 15 @@@ ROGUE MODE // 2025.05.31 @ 14:22:03 Player: MTF Result: Destroyed by XM-0XH(R) with Subdweller Laser Performance ------------- Evolutions (0) 0 Regions Visited (2) 400 Robots Destroyed (36) 180 Value Destroyed (690) 690 Prototype IDs (11) 220 Alien Tech Used (0) 0 Bonus (0) 0 TOTAL SCORE: 1490 Bonus ------- None Cogmind --------- Core Integrity 0/250 Matter 276/300 Energy 140/200 System Corruption 3% Temperature Cool (14) Movement Treading (250) Ox1 Location -10/Subcaves Parts ------- > --- POWER (1) -------- Subdweller Power Source > --- PROPULSION (2) --- Light Treads (fused) Spiked Treads > --- UTILITY (2) ------ High-capacity Storage Unit Core Shielding > --- WEAPON (2) ------- Subdweller Beam Cannon Subdweller Beam Cannon > --- INVENTORY (20) --- Arachnoskeleton Subdweller Monowheel Flightbrick Medium Battery (150) High-capacity Matter Pod (200) Seismic Detector Seismic Detector Scrap Shield Tractor Beam Subdweller Laser Subdweller Machine Gun Subdweller Machine Gun Mining Laser Makeshift Axe Peak State ------------ > --- POWER ------------ Subdweller Power Source > --- PROPULSION ------- Light Treads Spiked Treads > --- UTILITY ---------- High-capacity Storage Unit Seismic Detector > --- WEAPON ----------- Subdweller Beam Cannon Subdweller Beam Cannon > --- INVENTORY -------- Arachnoskeleton Subdweller Monowheel Flightbrick Medium Battery High-capacity Matter Pod Seismic Detector Core Shielding Scrap Shield Tractor Beam Subdweller Laser Subdweller Machine Gun Subdweller Machine Gun Mining Laser Makeshift Axe [Rating: 18] Favorites ----------- Power Ion Engine Engine Ion Engine Propulsion Light Treads Treads Light Treads Leg Aluminum Leg Utility Seismic Detector Device Seismic Detector Storage High-capacity Storage Unit Protection Core Shielding Weapon EM Pulse Gun Energy Gun EM Pulse Gun Energy Cannon Subdweller Beam Cannon Ballistic Gun Light Assault Rifle Special Weapon Mining Laser Slashing Weapon Makeshift Axe Build | -11 -10 -10 ------- Run | Yrd Mat Sub Slots Evolved . | . . . Power . | . . . Propulsion . | . . . Utility . | . . . Weapon . | . . . Parts Attached 29 | 5 10 14 Power 3 | . 1 2 Engine 3 | . 1 2 Core . | . . . Reactor . | . . . Propulsion 6 | 2 . 4 Treads 6 | 2 . 4 Leg . | . . . Wheel . | . . . Hover . | . . . Flight . | . . . Utility 7 | 2 4 1 Device 3 | 2 1 . Storage 2 | . 2 . Processor . | . . . Hackware . | . . . Protection 2 | . 1 1 Artifact . | . . . Weapon 13 | 1 5 7 Energy Gun 8 | . 4 4 Energy Cannon 2 | . . 2 Ballistic Gun 1 | 1 . . Ballistic Cannon . | . . . Launcher . | . . . Special Weapon 1 | . 1 . Impact Weapon . | . . . Slashing Weapon 1 | . . 1 Piercing Weapon . | . . . Special Melee Weapon . | . . . Unidentified Prototypes . | . . . Parts Lost 8 | . 1 7 Power 1 | . . 1 Propulsion 2 | . . 2 Utility . | . . . Weapon 5 | . 1 4 Highest Loss Streak 5 | . 1 5 To Critical Strikes 1 | . . 1 Average Backups 12 | 6 10 13 Power . | 1 . . Propulsion 2 | 3 2 2 Utility 5 | . 4 6 Weapon 3 | 1 3 3 Tool/Special . | . . . Unused Backups 17 | . 6 11 Power 1 | . 1 . Propulsion 5 | . 2 3 Utility 8 | . 2 6 Weapon 3 | . 1 2 Tool/Special . | . . . Average Slot Usage (%) 98 | . 95 99 Engine 14 | . 14 14 Treads 28 | . 28 28 Device 13 | . 13 12 Storage 14 | . 14 14 Energy Gun 13 | . 15 12 Energy Cannon 8 | . . 14 Special Weapon 3 | . 8 . Peak Build Rating 18 | 9 8 18 Average Rating 11 | 7 7 14 On Entrance 7 | 6 7 8 Naked Turns . | . . . Heaviest Build 62 | 12 50 62 Greatest Support 40 | 40 40 40 Greatest Overweight (x) 1 | . 1 1 Average Overweight (x) . | . . 1 Largest Inventory Capacity 20 | 8 20 20 Average Capacity 18 | 8 16 20 Most Carried 20 | 7 13 20 Average Carried 14 | 6 10 17 Final Capacity 20 | 8 20 20 Final Carried 20 | 5 12 20 Class Distribution -------------------- 100% | Mutant Dominant Class ---------------- Mutant | -10/Materials Mutant | -10/Subcaves Resources | -11 -10 -10 ----------- Run | Yrd Mat Sub Matter Collected 1223 | 271 310 642 Remotely . | . . . Salvage Created 1186 | 187 429 570 Parts 88 | 12 32 44 Haulers Intercepted 1 | . 1 . Recyclers Shooed 1 | . 1 . Parts Field Recycled . | . . . Retrieved Matter . | . . . Parts Self-Destructed 7 | . . 7 Prevented . | . . . Kills | -11 -10 -10 ------- Run | Yrd Mat Sub Combat Hostiles Destroyed 24 | . 9 15 Guns 20 | . 9 11 Cannons 4 | . . 4 Classes Destroyed 8 | 2 5 1 Worker 1 | . 1 . Tunneler 5 | 5 . . Hauler 1 | . 1 . Recycler 2 | 1 1 . Watcher 3 | . 3 . Swarmer 12 | . 6 6 Grunt 3 | . 3 . Subdweller 9 | . . 9 Best Kill Streak 6 | 4 3 6 Combat Bots Only 6 | . 3 6 Max Kills in Single Turn 2 | 1 2 2 Gunslinging 1 | . 1 1 Exploded . | . . . Melee . | . . . Uniques/NPCs Destroyed . | . . . Combat | -11 -10 -10 -------- Run | Yrd Mat Sub Hostile Shots Fired 110 | . 34 76 Missed 31 | . 12 19 Hits 79 | . 22 57 Projectile 79 | . 22 57 Critical Strikes 2 | . . 2 Damage Taken 1261 | . 192 1069 Core 250 | . 14 236 Absorbed by Shields . | . . . Redirected to Shielding 35 | . 2 33 Core Remaining (%) 100 | 100 . . Volleys Fired 116 | 21 56 39 Largest 2 | 2 2 2 Hottest 160 | 70 100 160 Shots Fired 197 | 42 85 70 Gun 159 | 42 67 50 Cannon 20 | . . 20 Launcher . | . . . Special 18 | . 18 . Kinetic 21 | 21 . . Thermal 77 | 21 26 30 Explosive . | . . . Electromagnetic 99 | . 59 40 Robot Hit Streak 16 | 4 7 16 Robot Miss Streak 4 | 3 4 2 Penetration Max . | . . . Secondary Targets 5 | . 2 3 Max Gunslinging Chain 1 | . 1 1 Shots Hit Robots 107 | 18 38 51 Core Hits 50 | 8 18 24 Critical Kills . | . . . Critical Parts Destroyed . | . . . Critical Strikes 8 | 1 6 1 Burn 4 | 1 3 . Corrupt 4 | . 3 1 Melee Attacks 3 | . . 3 Impact . | . . . Slashing 3 | . . 3 Piercing . | . . . Sneak Attacks . | . . . Combat Hostiles . | . . . Follow-up Attacks . | . . . Damage Inflicted 1695 | 205 623 867 Guns 1299 | 205 558 536 Cannons 331 | . . 331 Explosions 22 | . 22 . Melee . | . . . Ramming 43 | . 43 . Kinetic 67 | 67 . . Thermal 738 | 138 110 490 Explosive . | . . . Electromagnetic 847 | . 470 377 Impact . | . . . Slashing . | . . . Piercing . | . . . Highest Corruption 3 | . 3 3 Average Corruption 2 | . 2 3 Corruption Purged . | . . . Corruption Blocked . | . . . Effects 98 | . 40 58 Message Errors 25 | . 9 16 Matter Fused 28 | . 16 12 Heat Flow Errors 15 | . 4 11 Energy Discharges 12 | . 2 10 Parts Rejected 1 | . 1 . Parts Fused 1 | . . 1 Data Loss (minor) 12 | . 6 6 Data Loss (major) 1 | . . 1 Misfires 2 | . 1 1 Alerts 1 | . 1 . Overload Shots . | . . . Overflow Damage . | . . . Projectiles . | . . . Explosions . | . . . Melee . | . . . Knockbacks . | . . . Impact . | . . . Kinetic . | . . . Secondary . | . . . Self-Inflicted Damage . | . . . Shots . | . . . Rammed 12 | . 12 . Targets Rammed 13 | . 13 . Kicked . | . . . Crushed 1 | . 1 . Highest Temperature 256 | 120 256 252 Average Temperature 51 | 47 37 92 Received Heat Transfer 237 | . 30 207 Siege Activations . | . . . Martial Activations . | . . . Shielding Activations . | . . . Robots Disrupted . | . . . Combat Hostiles . | . . . Robots Corrupted . | . . . Combat Hostiles . | . . . Parts Fried 1 | . 1 . Impact Corruptions . | . . . Robots Melted 1 | . 1 . Combat Hostiles . | . . . Parts Melted 4 | . 1 3 Heat Transferred 1656 | 481 531 644 Parts Sabotaged . | . . . Parts Stolen . | . . . Parts Stripped . | . . . Power Chain Reactions 1 | . 1 . Alert | -11 -10 -10 ------- Run | Yrd Mat Sub Maximum Alert Level . | . . . Low Security (%) 100 | 100 100 . Level 1 . | . . . Level 2 . | . . . Level 3 . | . . . Level 4 . | . . . Level 5 . | . . . High Security . | . . . Max Security . | . . . Peak Influence 114 | 5 114 . Initial . | . . . Average 27 | 1 29 . Influence Increases 664 | 30 449 185 Destroy 0b10 Robot/C 300 | . 180 120 Destroy 0b10 Robot/NC 60 | 30 30 . Destroy Leader 58 | . 38 20 Successful Hack 31 | . 31 . Select Force Hacks 60 | . 60 . Disable Machine 15 | . 15 . Destroy Structure 20 | . 20 . Lose Combat Pursuer 120 | . 75 45 Influence Decreases 664 | 30 448 186 Entered New Map 1 | . . 1 Time Decay 616 | 30 438 148 Lost Part 47 | . 10 37 Squads Dispatched 3 | . 3 . Investigation 3 | . 3 . Extermination . | . . . Reinforcement . | . . . Assault . | . . . Garrison . | . . . Intercept . | . . . Searches Triggered . | . . . Construction Impeded . | . . . Haulers Reinforced . | . . . Active Scanning Responses . | . . . Cargo Convoy Interrupts . | . . . Stealth | -11 -10 -10 --------- Run | Yrd Mat Sub Distress Signals 2 | . 2 . Communications Jammed . | . . . Distress Signals . | . . . Times Spotted 35 | . 17 18 Peak Tracking Total 6 | . 5 6 Tactical Retreats 3 | . 2 1 Traps | -11 -10 -10 ------- Run | Yrd Mat Sub Traps Triggered 4 | . 3 1 Indirectly . | . . . Trap Hack Attempts . | . . . Triggered . | . . . Disarmed . | . . . Reprogrammed . | . . . Reused . | . . . Traps Extracted . | . . . Installed . | . . . Triggered . | . . . Machines | -11 -10 -10 ---------- Run | Yrd Mat Sub Machines Disabled 2 | . 1 1 Max in Single Turn 1 | . 1 1 Machines Repaired . | . . . Machines Dismantled . | . . . Machines Sabotaged . | . . . Overloaded Fab Kills . | . . . Hacking | -11 -10 -10 --------- Run | Yrd Mat Sub Machines Accessed 10 | . 8 2 Terminals 6 | . 6 . Fabricators . | . . . Repair Stations . | . . . Recycling Units 2 | . 2 . Scanalyzers . | . . . Garrison Access . | . . . Total Hacks 25 | . 21 4 Successful 19 | . 15 4 Failed 6 | . 6 . Catastrophic 1 | . 1 . Database Lockouts . | . . . Manual 16 | . 16 . Terminals 19 | . 19 . Fabricators . | . . . Repair Stations . | . . . Recycling Units 2 | . 2 . Scanalyzers . | . . . Garrison Access . | . . . Terminal Hacks 11 | . 7 4 Record 3 | . . 3 Part Schematic 1 | . 1 . Robot Schematic 1 | . 1 . Robot Analysis 1 | . 1 . Terminal Index 1 | . 1 . Locate Traps 1 | . 1 . Hauler Manifests 1 | . 1 . Zone Layout 1 | . 1 . Proto ID Catalog 1 | . . 1 Fabricator Hacks . | . . . Repair Station Hacks . | . . . Recycling Unit Hacks . | . . . Scanalyzer . | . . . Garrison Access Hacks . | . . . Unauthorized Hacks 8 | . 8 . Terminals 6 | . 6 . Operators 1 | . 1 . Skim 5 | . 5 . Fabricators . | . . . Repair Stations . | . . . Recycling Units 2 | . 2 . Tunnel 2 | . 2 . Scanalyzers . | . . . Garrison Access . | . . . Data Cores Recovered . | . . . Used . | . . . Hacking Detections 3 | . 3 . Full Trace Events . | . . . Feedback Events . | . . . Feedback Blocked . | . . . Robot Schematics Acquired 1 | . 1 . Robots Built . | . . . Authchips . | . . . Time . | . . . Total Robot Build Rating . | . . . Part Schematics Acquired 1 | . 1 . Parts Built . | . . . Authchips . | . . . Time . | . . . Total Part Build Rating . | . . . Parts Repaired . | . . . Time . | . . . Parts Recycled . | . . . Recycled Matter . | . . . Retrieved Matter . | . . . Retrieved Components . | . . . Parts Scanalyzed . | . . . Part Schematics Acquired . | . . . Parts Damaged . | . . . Bothacking | -11 -10 -10 ------------ Run | Yrd Mat Sub Used RIF Installer . | . . . Robots Hacked . | . . . Non-combat . | . . . Combat . | . . . Robot Hacks Applied . | . . . Relay Couplers Released . | . . . Fabnet Peak Effective % . | . . . Robots Rewired . | . . . Allies Hacked . | . . . Hacks Repelled . | . . . Allies | -11 -10 -10 -------- Run | Yrd Mat Sub Total Allies . | . . . Largest Group . | . . . Highest-Rated Group . | . . . Highest-Rated Ally . | . . . Total Orders . | . . . Ally Attacks . | . . . Total Damage . | . . . Kills . | . . . Allies Corrupted . | . . . Allies Melted . | . . . Intel | -11 -10 -10 ------- Run | Yrd Mat Sub Active Infowar (turns) 5722 | 81 2383 3258 Terrain 67 | 67 . . Seismic 5655 | 14 2383 3258 Robot Analysis Total 1 | . 1 . Derelict Logs Recovered 2 | . . 2 Drone Launches . | . . . Drone Recoveries . | . . . Exploration | -11 -10 -10 ------------- Run | Yrd Mat Sub Turns Passed 6165 | 122 2428 3615 Spaces Moved 1994 | 44 736 1214 Core . | . . . Treads 1955 | 5 736 1214 Legs 39 | 39 . . Wheels . | . . . Hover . | . . . Flight . | . . . Fastest Speed 120 | 120 160 240 Average Speed 223 | 124 200 241 Slowest Speed 250 | 160 240 250 Overloaded Moves . | . . . Propulsion Burnouts . | . . . Robots Hopped . | . . . Potential Cave-ins . | . . . Cave-ins Triggered . | . . . Exploration Rate (%) 51 | 3 85 65 Regions Visited 2 Branch Regions 1 Pre-discovered Areas 3 | . 2 1 Known Exits Taken 1 | . 1 . Unknown Exits Taken 1 | 1 . . Scrap Searched 5 | . . 5 Spaces Dug 17 | . 17 . Terrain Destroyed 23 | . 20 3 Melee . | . . . Projectile 20 | . 17 3 AOE 3 | . 3 . Terrain Rammed . | . . . Walls Destroyed . | . . . Machines Disabled . | . . . Actions | -11 -10 -10 --------- Run | Yrd Mat Sub Total 3439 | 73 1553 1813 Wait 1192 | . 699 493 Move 1992 | 43 735 1214 Hop . | . . . Pick Up 29 | 1 16 12 Fast Attach 10 | 2 2 6 Attach 10 | . 2 8 Detach 2 | . 1 1 Swap 49 | 3 18 28 Drop 23 | 3 11 9 Fire 116 | 21 56 39 Melee 3 | . . 3 Ram . | . . . Kick . | . . . Crush 13 | . 13 . Escape Stasis . | . . . Rewire . | . . . Trap . | . . . Miscellaneous . | . . . Route ------- -11/Scrapyard -10/Materials (discovered 6 exits: *Mat x3 / [*Min x2] / *Sub) -10/Subcaves (discovered 2 exits: Mat x2) History --------- Turn | Location | Event 14 | -11/Scrapyard | Discovered new exit (range 3) 123 | -11/Scrapyard | Entered Materials 309 | -10/Materials | Build established: Mutant 414 | -10/Materials | Discovered new exit (range 8) 668 | -10/Materials | Discovered new exit (range 12) 897 | -10/Materials | Discovered new exit (range 12) 1066 | -10/Materials | Discovered new exit (range 16) 1535 | -10/Materials | Learned Storage security intel 1589 | -10/Materials | Learned location of 1 exit from Recycling 1634 | -10/Materials | Identified exit to Materials 1668 | -10/Materials | Learned Storage emergency access door positions 1711 | -10/Materials | Learned 4 Subcaves zone layouts 1765 | -10/Materials | Identified exit to Subcaves 2551 | -10/Materials | Entered Subcaves 2552 | -10/Subcaves | Identified exit to Materials 3063 | -10/Subcaves | Disturbed a concealed Subdweller 3298 | -10/Subcaves | A swath of the cavern ceiling suddenly collapsed 3377 | -10/Subcaves | Learned 2 Materials zone layouts 3481 | -10/Subcaves | Visited 4L-MR0's lab 3510 | -10/Subcaves | Found Flightbrick 3601 | -10/Subcaves | A Subdweller sparked back to life 3601 | -10/Subcaves | A Subdweller sparked back to life 3601 | -10/Subcaves | A Subdweller sparked back to life 3602 | -10/Subcaves | Core integrity fell below 50% 3622 | -10/Subcaves | Core integrity fell below 20% 3661 | -10/Subcaves | Lost 5 parts (1p1n3w) 3666 | -10/Subcaves | Found Arachnoskeleton 5479 | -10/Subcaves | Visited Clippyterm 5486 | -10/Subcaves | Learned Research security intel 5540 | -10/Subcaves | Shifting Twisted Machinery released Spk. Treads 5545 | -10/Subcaves | Shifting Twisted Machinery released Mak. Hacking Suite 6166 | -10/Subcaves | Destroyed by XM-0XH(R) with Subdweller Laser Last Messages --------------- 05529_ Acquired 30 matter. Spk. Treads falls loose from the Twisted Machinery. Mak. Hacking Suite falls loose from the Twisted Machinery. 05561_ Dropped Lgt. Treads. 05561_ Acquired Spk. Treads. 05574_ System corrupted: Heat flow error (+162). 05637_ System corrupted: Energy discharge (-40). 05801_ MX-9SA(R): "WEHOME!" 05816_ Disposable Heat Sink melted. 05816_ MX-9SA(R) destroyed. 05828_ Acquired 59 matter. 05837_ System corrupted: Heat flow error (+276). 05845_ Subatomizers dissect the Sub. Optics. 05865_ System corrupted: Heat flow error (+297). 05928_ System corrupted: Lgt. Treads fused. 06040_ System corrupted: Heat flow error (+280). 06133_ System corrupted: Matter fused (-5). 06158_ System corrupted: Heat flow error (+229). Map ----- +----------------------------------------------------+ | # # # ##" ## ????? "???? "#???# | | ## ##" ## ?????? ????? ""#??## | | ### "" " ###??????# ?????# "##?# ### | | ??## #"# ##"# #????????# #????#"" ## #?# ### | | ??## "#########????????# ##??#" ## ### #?? | | ### ""#???????????????## #### ### ## ##?? | | # """##??????????????# ## ### "### ##? | | "" " ##?????????????## " ####""#?# ## | | "## " #??????????????# # ####?# # | | #####" ##??????????????# ## #### ###?# & | | ????####???????????????# ###### #### ! | | ???????????????????????## #??## #### [ | | ????????????????????????## #??# ### ## ## | | ?????????????????????????# #??# #?## |% ## | | ????????????????????????## #??## #??# ## | | ????????????????????????# ########??# # | | ???????????????????????## ##?????### | | ???????????????????????# ##??????# ### | | ??????????????????###??# ;#??????# #### | | ???????????????????& "## #???????###### | | ????????????????????# #< ## #????????# | | ????????????????????# #???????## ## | | ????????????????????# #" #??????## ## | | ????????????????????### [ #?????? # | | ??????????????????????###R #?????? ? | | ????????????????????????#@ #######?????" | | ??????????????????????? #??????????#"" "" | | ????????????????????? ????????#### " "" | | ??????????????????? ????????## "" | | ????????????????? ## ## ???????#### " | | ??????????????? ??# ?## % ????????? ? | | ??????????????##???? ???## ????????? ? | | ???????????????????# ????# ??????????? | | ??????????????????? ?????# #???????????? | | ?????????????????? ?????? #???????????? | | ?????????????????% ???????### ????????????? | | ????????????????? ??????????? #????????????? | | ???????????????? ???????????? ??????????????? | | ??????????????????????????????? ????????????????? | | ?????????????????????????????????????????????????? | | ?????????????????????????????????????????????????? | | ?????????????????????????????????????????????????? | | ?????????????????????????????????????????????????? | | ?????????????????????????????????????????????????? | | ?????????????????????????????????????????????????? | | ?????????????????????????????????????????????????? | | ?????????????????????????????????????????????????? | | ?????????????????????????????????????????????????? | | ?????????????????????????????????????????????????? | | ?????????????????????????????????????????????????? | +----------------------------------------------------+ Best States ------------- Heat Dissipation 25 Energy Generation 15 Energy Capacity 250 Matter Stores 300 Matter Capacity 300 Sight Range 16 Terrain Scan Range 16 Terrain Scan Density 10 Core Shielding 20 Evasion (%) 55 Recoil Reduction 2 Item Schematics ----------------- Huge Storage Unit | -10/Materials | Hacked Robot Schematics ------------------ M-13 Machinist | -10/Materials | Hacked Fabricated ------------ Nothing Repaired ---------- Nothing Alien Tech Used ----------------- None Achievements -------------- None Challenges ------------ None Game ------ Seed CooledCatalystDatajack Manual? 0 Play Time 00:56:38 Cumulative 1658.9 hours Start 2025.05.31 @ 12:50:09 End 2025.05.31 @ 14:22:03 Sessions 1 Manual Loads 0 Difficulty Rogue Special Mode None Game No. 442 Rogue 442 Adventurer 0 Explorer 0 Win Type - Total 99 Types 14/18/21/3/1/2/35/2/2/1 Lore% 81 Gallery% 88 Achievement% 89 Wizard Run 0 Options --------- Layout 2 ASCII 0 Keyboard 0 Movement Numpad Keybinds 0 Fullscreen 2 Font 32/Tamsyn Map View 50x44 Zoom Use 0% Tactical HUD 1 Map Filters NONE Filters NONE Steam 1 RUN: 3e0b9869-7e73-4f81-b4b5-175134fd970e